[Event "Early-Titled-Tuesday-Blitz-February-06-2024"]
[Site "Chess.com"]
[Date "2024.02.06"]
[Round "4"]
[White "Aradhya2000"]
[Black "Chesstrainer1"]
[Result "1-0"]
[WhiteElo "2695"]
[BlackElo "2479"]
[TimeControl "180+1"]
[EndTime "8:38:27 PST"]
[Termination "Aradhya2000 won on time"]

1. d4 {[%clk 0:03:00.9]} 1... Nf6 {[%clk 0:02:52.4]} 2. c4 {[%clk 0:03:00.9]}
2... Nc6 {[%clk 0:02:50.4]} 3. Nf3 {[%clk 0:03:00.4]} 3... e6 {[%clk 0:02:50.3]}
4. a3 {[%clk 0:02:59.8]} 4... g6 {[%clk 0:02:49]} 5. Nc3 {[%clk 0:02:59.3]} 5...
Bg7 {[%clk 0:02:47.1]} 6. e4 {[%clk 0:02:59.5]} 6... d6 {[%clk 0:02:47]} 7. Be2
{[%clk 0:02:59.6]} 7... O-O {[%clk 0:02:46.2]} 8. O-O {[%clk 0:03:00.2]} 8...
Re8 {[%clk 0:02:45.8]} 9. Be3 {[%clk 0:02:55.3]} 9... e5 {[%clk 0:02:43.2]} 10.
d5 {[%clk 0:02:54.8]} 10... Nd4 {[%clk 0:02:43.2]} 11. h3 {[%clk 0:02:35.3]}
11... Nxe2+ {[%clk 0:02:04.5]} 12. Qxe2 {[%clk 0:02:33.4]} 12... Nh5 {[%clk
0:02:05.4]} 13. c5 {[%clk 0:02:28.2]} 13... f5 {[%clk 0:01:17.2]} 14. exf5
{[%clk 0:02:23.1]} 14... Bxf5 {[%clk 0:00:44]} 15. cxd6 {[%clk 0:02:17.9]} 15...
cxd6 {[%clk 0:00:41.9]} 16. Rfc1 {[%clk 0:02:13.8]} 16... Qd7 {[%clk 0:00:34.7]}
17. Ng5 {[%clk 0:01:42.2]} 17... Nf4 {[%clk 0:00:28.2]} 18. Qd2 {[%clk
0:01:31.5]} 18... Qe7 {[%clk 0:00:12]} 19. Bxf4 {[%clk 0:01:26]} 19... exf4
{[%clk 0:00:12.5]} 20. Qxf4 {[%clk 0:01:25.4]} 20... Be5 {[%clk 0:00:12.2]} 21.
Qd2 {[%clk 0:01:23.5]} 21... Qf6 {[%clk 0:00:10.1]} 22. Nf3 {[%clk 0:01:17.9]}
22... Bxh3 {[%clk 0:00:02.4]} 23. Nxe5 {[%clk 0:01:09]} 23... Rxe5 {[%clk
0:00:03.3]} 24. gxh3 {[%clk 0:01:08.5]} 24... Qf3 {[%clk 0:00:03.1]} 25. Re1
{[%clk 0:01:04]} 25... Rf8 {[%clk 0:00:02.1]} 26. Rxe5 {[%clk 0:01:00.3]} 26...
dxe5 {[%clk 0:00:03]} 27. d6 {[%clk 0:01:00.6]} 27... Rf4 {[%clk 0:00:01.9]} 28.
Qd5+ {[%clk 0:01:00]} 1-0

[Event "Early-Titled-Tuesday-Blitz-February-06-2024"]
[Site "Chess.com"]
[Date "2024.02.06"]
[Round "4"]
[White "SujanaLohani"]
[Black "GoValya"]
[Result "0-1"]
[WhiteElo "1989"]
[BlackElo "2275"]
[TimeControl "180+1"]
[EndTime "8:38:27 PST"]
[Termination "GoValya won by resignation"]

1. d4 {[%clk 0:03:00.9]} 1... d5 {[%clk 0:02:58.6]} 2. Nf3 {[%clk 0:03:00.3]}
2... Nf6 {[%clk 0:02:56]} 3. c4 {[%clk 0:03:00.7]} 3... c6 {[%clk 0:02:55.4]} 4.
e3 {[%clk 0:03:00.1]} 4... e6 {[%clk 0:02:54.7]} 5. Nc3 {[%clk 0:03:00]} 5...
Be7 {[%clk 0:02:55.3]} 6. Qc2 {[%clk 0:02:59.7]} 6... O-O {[%clk 0:02:55.5]} 7.
Bd3 {[%clk 0:02:59.4]} 7... dxc4 {[%clk 0:02:55.9]} 8. Bxc4 {[%clk 0:02:59.5]}
8... b5 {[%clk 0:02:56.6]} 9. Bd3 {[%clk 0:02:59.4]} 9... Bb7 {[%clk 0:02:57.2]}
10. O-O {[%clk 0:02:59]} 10... Nbd7 {[%clk 0:02:57.4]} 11. Rd1 {[%clk
0:02:57.6]} 11... Rc8 {[%clk 0:02:52.3]} 12. e4 {[%clk 0:02:57.1]} 12... h6
{[%clk 0:02:46.1]} 13. Bf4 {[%clk 0:02:54.5]} 13... a6 {[%clk 0:02:30.2]} 14.
Qe2 {[%clk 0:02:42]} 14... Qb6 {[%clk 0:02:11]} 15. d5 {[%clk 0:02:37.4]} 15...
cxd5 {[%clk 0:02:05.6]} 16. exd5 {[%clk 0:02:37.1]} 16... Nxd5 {[%clk
0:01:51.6]} 17. Qe4 {[%clk 0:02:05.2]} 17... N7f6 {[%clk 0:01:49.5]} 18. Qe5
{[%clk 0:01:58]} 18... Ng4 {[%clk 0:01:31.8]} 19. Nxd5 {[%clk 0:01:39.6]} 19...
Qxf2+ {[%clk 0:01:26.5]} 20. Kh1 {[%clk 0:01:38.9]} 20... Nxe5 {[%clk
0:01:27.4]} 21. Nxe7+ {[%clk 0:01:37.7]} 21... Kh8 {[%clk 0:01:27.5]} 22. Bxe5
{[%clk 0:01:28.7]} 22... Bxf3 {[%clk 0:01:23]} 23. gxf3 {[%clk 0:01:22.8]} 23...
Qxf3+ {[%clk 0:01:23.1]} 24. Kg1 {[%clk 0:01:22.4]} 24... Qe3+ {[%clk
0:01:21.7]} 25. Kg2 {[%clk 0:01:11.7]} 25... Qxe5 {[%clk 0:01:22.6]} 26. Nxc8
{[%clk 0:01:11.3]} 26... Qxb2+ {[%clk 0:01:14]} 27. Kf3 {[%clk 0:01:04.2]} 27...
Rxc8 {[%clk 0:01:12]} 28. Rab1 {[%clk 0:00:41.1]} 28... Qe5 {[%clk 0:01:09.9]}
29. Rbc1 {[%clk 0:00:37.7]} 29... Rxc1 {[%clk 0:01:02.2]} 30. Rxc1 {[%clk
0:00:37.4]} 30... g6 {[%clk 0:00:58.7]} 31. Rc8+ {[%clk 0:00:31]} 31... Kg7
{[%clk 0:00:58.8]} 32. Ra8 {[%clk 0:00:25.5]} 32... Qd5+ {[%clk 0:00:58.9]} 33.
Be4 {[%clk 0:00:25.5]} 33... Qxa2 {[%clk 0:00:58.5]} 0-1

[Event "Early-Titled-Tuesday-Blitz-February-06-2024"]
[Site "Chess.com"]
[Date "2024.02.06"]
[Round "4"]
[White "dianamirza"]
[Black "DarZay"]
[Result "0-1"]
[WhiteElo "1960"]
[BlackElo "2256"]
[TimeControl "180+1"]
[EndTime "8:38:27 PST"]
[Termination "DarZay won by resignation"]

1. e4 {[%clk 0:02:59.4]} 1... c5 {[%clk 0:02:53.7]} 2. Nf3 {[%clk 0:02:57.2]}
2... Nc6 {[%clk 0:02:51.3]} 3. d4 {[%clk 0:02:55.8]} 3... cxd4 {[%clk
0:02:50.9]} 4. Nxd4 {[%clk 0:02:55.6]} 4... Nf6 {[%clk 0:02:50.7]} 5. Nc3 {[%clk
0:02:55]} 5... d6 {[%clk 0:02:49.7]} 6. Be3 {[%clk 0:02:53.9]} 6... Ng4 {[%clk
0:02:48.2]} 7. Bc1 {[%clk 0:02:46.8]} 7... e5 {[%clk 0:02:44.5]} 8. Nf5 {[%clk
0:02:44.9]} 8... Bxf5 {[%clk 0:02:38.4]} 9. exf5 {[%clk 0:02:37.2]} 9... Nf6
{[%clk 0:02:36.8]} 10. Bc4 {[%clk 0:02:32.8]} 10... Nd4 {[%clk 0:02:31.3]} 11.
Qd3 {[%clk 0:02:15.4]} 11... a6 {[%clk 0:02:25.8]} 12. O-O {[%clk 0:02:13.5]}
12... b5 {[%clk 0:02:25]} 13. Bd5 {[%clk 0:02:04.7]} 13... Rc8 {[%clk
0:02:23.7]} 14. Bg5 {[%clk 0:02:01.8]} 14... Be7 {[%clk 0:02:22.2]} 15. Rac1
{[%clk 0:01:38]} 15... Nxd5 {[%clk 0:02:18.9]} 16. Nxd5 {[%clk 0:01:20.6]} 16...
Bxg5 {[%clk 0:02:18.3]} 17. f4 {[%clk 0:01:20.2]} 17... Bf6 {[%clk 0:02:16.1]}
18. Nxf6+ {[%clk 0:01:18.6]} 18... Qxf6 {[%clk 0:02:15.3]} 19. fxe5 {[%clk
0:01:17.2]} 19... dxe5 {[%clk 0:02:14.6]} 20. c3 {[%clk 0:01:12.7]} 20... Nc6
{[%clk 0:02:10.1]} 21. Rcd1 {[%clk 0:01:07.2]} 21... O-O {[%clk 0:02:09.4]} 22.
Qe4 {[%clk 0:01:04.3]} 22... Ne7 {[%clk 0:02:07.5]} 23. Qb7 {[%clk 0:01:01.6]}
23... Rc4 {[%clk 0:02:00.4]} 24. Rd7 {[%clk 0:00:57]} 24... Nxf5 {[%clk
0:01:57.1]} 25. b3 {[%clk 0:00:51.8]} 25... Rxc3 {[%clk 0:01:51.9]} 26. g4
{[%clk 0:00:49.9]} 26... Nd6 {[%clk 0:01:32.1]} 27. Rxf6 {[%clk 0:00:47.3]}
27... Nxb7 {[%clk 0:01:31.9]} 28. Rxa6 {[%clk 0:00:35.4]} 28... Nc5 {[%clk
0:01:28.4]} 29. Rc7 {[%clk 0:00:31]} 29... Nxa6 {[%clk 0:01:06.7]} 30. Rxc3
{[%clk 0:00:30.2]} 30... Rd8 {[%clk 0:01:02.9]} 31. a3 {[%clk 0:00:21.3]} 31...
b4 {[%clk 0:00:49.1]} 32. a4 {[%clk 0:00:17.7]} 32... bxc3 {[%clk 0:00:48.3]}
0-1

[Event "Early-Titled-Tuesday-Blitz-February-06-2024"]
[Site "Chess.com"]
[Date "2024.02.06"]
[Round "4"]
[White "the_blue_pill"]
[Black "LangesNasenhaar"]
[Result "0-1"]
[WhiteElo "2306"]
[BlackElo "2495"]
[TimeControl "180+1"]
[EndTime "8:38:30 PST"]
[Termination "LangesNasenhaar won by resignation"]

1. d4 {[%clk 0:03:00.9]} 1... g6 {[%clk 0:02:59.7]} 2. e4 {[%clk 0:02:59.3]}
2... Bg7 {[%clk 0:03:00.1]} 3. Nf3 {[%clk 0:02:59]} 3... c6 {[%clk 0:03:00.6]}
4. Nc3 {[%clk 0:02:58.6]} 4... d5 {[%clk 0:03:01.2]} 5. h3 {[%clk 0:02:57.6]}
5... dxe4 {[%clk 0:02:58.2]} 6. Nxe4 {[%clk 0:02:58.5]} 6... Nf6 {[%clk
0:02:58.3]} 7. Nxf6+ {[%clk 0:02:58.3]} 7... exf6 {[%clk 0:02:59.2]} 8. Bc4
{[%clk 0:02:52.4]} 8... O-O {[%clk 0:02:59.6]} 9. O-O {[%clk 0:02:52.1]} 9...
Re8 {[%clk 0:02:55.9]} 10. c3 {[%clk 0:02:51.5]} 10... Be6 {[%clk 0:02:50.4]}
11. Bxe6 {[%clk 0:02:51.5]} 11... Rxe6 {[%clk 0:02:49.7]} 12. Bf4 {[%clk
0:02:48.1]} 12... Nd7 {[%clk 0:02:41]} 13. Re1 {[%clk 0:02:48.4]} 13... Nf8
{[%clk 0:02:40.1]} 14. Qb3 {[%clk 0:02:46.1]} 14... b5 {[%clk 0:02:33.4]} 15. a4
{[%clk 0:02:44.4]} 15... a6 {[%clk 0:02:31.9]} 16. Nd2 {[%clk 0:02:28.4]} 16...
Rxe1+ {[%clk 0:02:25.3]} 17. Rxe1 {[%clk 0:02:29.3]} 17... Ne6 {[%clk
0:02:25.5]} 18. Bg3 {[%clk 0:02:28]} 18... Qd5 {[%clk 0:02:01.7]} 19. Qc2 {[%clk
0:01:54.8]} 19... f5 {[%clk 0:01:55.2]} 20. Be5 {[%clk 0:01:49.2]} 20... f6
{[%clk 0:01:45]} 21. Bh2 {[%clk 0:01:44]} 21... Bh6 {[%clk 0:01:36]} 22. Nf3
{[%clk 0:01:42.1]} 22... Re8 {[%clk 0:01:28.1]} 23. axb5 {[%clk 0:01:41]} 23...
axb5 {[%clk 0:01:27.9]} 24. Ra1 {[%clk 0:01:31.7]} 24... Re7 {[%clk 0:01:14.2]}
25. Ra8+ {[%clk 0:01:25.7]} 25... Kf7 {[%clk 0:01:14.6]} 26. Qd1 {[%clk
0:01:22.2]} 26... Bf4 {[%clk 0:01:08.8]} 27. Rh8 {[%clk 0:01:19.7]} 27... Kg7
{[%clk 0:01:03.2]} 28. Rc8 {[%clk 0:01:14.5]} 28... Bxh2+ {[%clk 0:00:58.7]} 29.
Kxh2 {[%clk 0:01:14.7]} 29... Nf4 {[%clk 0:00:56.2]} 30. Qd2 {[%clk 0:01:04.5]}
30... g5 {[%clk 0:00:56.5]} 31. h4 {[%clk 0:00:50]} 31... Re2 {[%clk 0:00:55.8]}
32. Qd1 {[%clk 0:00:40]} 32... Rxf2 {[%clk 0:00:52.7]} 33. Rc7+ {[%clk
0:00:39.6]} 33... Kg6 {[%clk 0:00:42]} 34. h5+ {[%clk 0:00:30.5]} 34... Kh6
{[%clk 0:00:42.4]} 0-1

[Event "Early-Titled-Tuesday-Blitz-February-06-2024"]
[Site "Chess.com"]
[Date "2024.02.06"]
[Round "4"]
[White "Irina_Mikhaylova"]
[Black "Qingdom"]
[Result "1/2-1/2"]
[WhiteElo "2334"]
[BlackElo "2087"]
[TimeControl "180+1"]
[EndTime "8:38:31 PST"]
[Termination "Game drawn by repetition"]

1. d4 {[%clk 0:03:00.9]} 1... Nf6 {[%clk 0:02:59.4]} 2. Nf3 {[%clk 0:03:01.1]}
2... c5 {[%clk 0:02:59.4]} 3. c4 {[%clk 0:03:01.3]} 3... e6 {[%clk 0:02:58.4]}
4. Nc3 {[%clk 0:03:01]} 4... d5 {[%clk 0:02:57]} 5. cxd5 {[%clk 0:03:00.9]} 5...
Nxd5 {[%clk 0:02:53.2]} 6. e4 {[%clk 0:03:00.8]} 6... Nxc3 {[%clk 0:02:53.1]} 7.
bxc3 {[%clk 0:03:01.7]} 7... cxd4 {[%clk 0:02:53.4]} 8. cxd4 {[%clk 0:03:02.3]}
8... Bb4+ {[%clk 0:02:53.5]} 9. Bd2 {[%clk 0:03:02.7]} 9... Bxd2+ {[%clk
0:02:52.9]} 10. Qxd2 {[%clk 0:03:03.6]} 10... O-O {[%clk 0:02:52.9]} 11. Bc4
{[%clk 0:03:03.2]} 11... Nd7 {[%clk 0:02:50.9]} 12. O-O {[%clk 0:03:02.2]} 12...
a6 {[%clk 0:02:49.6]} 13. Rfd1 {[%clk 0:02:52.6]} 13... b5 {[%clk 0:02:48.8]}
14. Bb3 {[%clk 0:02:53]} 14... Bb7 {[%clk 0:02:48.9]} 15. d5 {[%clk 0:02:53.5]}
15... exd5 {[%clk 0:02:47.5]} 16. exd5 {[%clk 0:02:52.2]} 16... Nb6 {[%clk
0:02:44.7]} 17. Ne5 {[%clk 0:02:39.9]} 17... Rc8 {[%clk 0:02:36.9]} 18. d6
{[%clk 0:02:31]} 18... Nc4 {[%clk 0:02:33.7]} 19. Bxc4 {[%clk 0:02:06.9]} 19...
bxc4 {[%clk 0:02:33.4]} 20. Rac1 {[%clk 0:01:55.1]} 20... Qh4 {[%clk 0:02:23.6]}
21. f4 {[%clk 0:01:40.8]} 21... Rfd8 {[%clk 0:02:06.5]} 22. Rxc4 {[%clk
0:01:31.9]} 22... Rxc4 {[%clk 0:02:05.2]} 23. Nxc4 {[%clk 0:01:32.4]} 23... Qg4
{[%clk 0:01:59.7]} 24. Ne5 {[%clk 0:01:26.2]} 24... Qf5 {[%clk 0:01:59.4]} 25.
Qd4 {[%clk 0:00:48.3]} 25... h5 {[%clk 0:01:45.8]} 26. d7 {[%clk 0:00:42.2]}
26... f6 {[%clk 0:01:39]} 27. Nf3 {[%clk 0:00:35]} 27... Bxf3 {[%clk 0:01:36.7]}
28. gxf3 {[%clk 0:00:35.9]} 28... Kh7 {[%clk 0:01:27.9]} 29. Qd3 {[%clk
0:00:34.9]} 29... Kg6 {[%clk 0:01:27.8]} 30. Kf2 {[%clk 0:00:34.4]} 30... Qxd3
{[%clk 0:01:26.7]} 31. Rxd3 {[%clk 0:00:35.3]} 31... Kf5 {[%clk 0:01:27.3]} 32.
Ke3 {[%clk 0:00:35.5]} 32... Ke6 {[%clk 0:01:27.4]} 33. Ke4 {[%clk 0:00:35.9]}
33... f5+ {[%clk 0:01:26.8]} 34. Ke3 {[%clk 0:00:35.3]} 34... Rxd7 {[%clk
0:01:26.1]} 35. Rxd7 {[%clk 0:00:35.5]} 35... Kxd7 {[%clk 0:01:26.4]} 36. Kd4
{[%clk 0:00:35]} 36... Kd6 {[%clk 0:01:26.4]} 37. Kc4 {[%clk 0:00:35.3]} 37...
Kc6 {[%clk 0:01:26]} 38. Kd4 {[%clk 0:00:35.8]} 38... Kd6 {[%clk 0:01:26.2]} 39.
a3 {[%clk 0:00:31.6]} 39... h4 {[%clk 0:01:24.3]} 40. h3 {[%clk 0:00:31.6]}
40... g6 {[%clk 0:01:22]} 41. Kc4 {[%clk 0:00:31.2]} 41... Kc6 {[%clk
0:01:22.3]} 42. Kd4 {[%clk 0:00:26.6]} 42... Kd6 {[%clk 0:01:22.5]} 43. a4
{[%clk 0:00:16.6]} 43... a5 {[%clk 0:01:22]} 44. Kc4 {[%clk 0:00:16.9]} 44...
Kc6 {[%clk 0:01:22.4]} 45. Kd4 {[%clk 0:00:17.4]} 45... Kd6 {[%clk 0:01:22.8]}
46. Kc4 {[%clk 0:00:15.9]} 46... Kc6 {[%clk 0:01:23.1]} 47. Kd4 {[%clk
0:00:16.4]} 47... Kd6 {[%clk 0:01:23.3]} 1/2-1/2

[Event "Early-Titled-Tuesday-Blitz-February-06-2024"]
[Site "Chess.com"]
[Date "2024.02.06"]
[Round "4"]
[White "Cambek64"]
[Black "alexrustemov"]
[Result "0-1"]
[WhiteElo "2510"]
[BlackElo "2759"]
[TimeControl "180+1"]
[EndTime "8:38:33 PST"]
[Termination "alexrustemov won by resignation"]

1. b3 {[%clk 0:02:55.7]} 1... d5 {[%clk 0:02:59.4]} 2. Bb2 {[%clk 0:02:56.4]}
2... Bf5 {[%clk 0:02:59.9]} 3. e3 {[%clk 0:02:55.7]} 3... e6 {[%clk 0:02:59.8]}
4. Nf3 {[%clk 0:02:56]} 4... h6 {[%clk 0:02:59.3]} 5. d3 {[%clk 0:02:54.4]} 5...
Nf6 {[%clk 0:02:59.6]} 6. Nbd2 {[%clk 0:02:54.8]} 6... Be7 {[%clk 0:02:59.8]} 7.
g3 {[%clk 0:02:55.5]} 7... O-O {[%clk 0:02:59.8]} 8. Bg2 {[%clk 0:02:56.1]} 8...
c5 {[%clk 0:03:00.1]} 9. O-O {[%clk 0:02:56.4]} 9... Nc6 {[%clk 0:03:00.5]} 10.
a3 {[%clk 0:02:53.3]} 10... Qc7 {[%clk 0:02:59.9]} 11. Qe2 {[%clk 0:02:53.8]}
11... Rfd8 {[%clk 0:02:59.3]} 12. h3 {[%clk 0:02:51.5]} 12... Rac8 {[%clk
0:02:58.6]} 13. Rfd1 {[%clk 0:02:50.1]} 13... b5 {[%clk 0:02:58.2]} 14. Rac1
{[%clk 0:02:46.1]} 14... Bh7 {[%clk 0:02:56.4]} 15. e4 {[%clk 0:02:44.9]} 15...
a6 {[%clk 0:02:45.5]} 16. c4 {[%clk 0:02:37.9]} 16... dxc4 {[%clk 0:02:42]} 17.
dxc4 {[%clk 0:02:36.1]} 17... b4 {[%clk 0:02:39.3]} 18. a4 {[%clk 0:02:34.8]}
18... Nd7 {[%clk 0:02:38.6]} 19. e5 {[%clk 0:02:29.7]} 19... Na5 {[%clk
0:02:33.1]} 20. Qe3 {[%clk 0:02:22.7]} 20... Nb8 {[%clk 0:02:32.6]} 21. Ne1
{[%clk 0:02:16.9]} 21... Nbc6 {[%clk 0:02:31.2]} 22. f4 {[%clk 0:02:13.9]} 22...
Nd4 {[%clk 0:02:30.5]} 23. Bxd4 {[%clk 0:02:08.7]} 23... Rxd4 {[%clk 0:02:19.9]}
24. Ndf3 {[%clk 0:02:07.8]} 24... Rd7 {[%clk 0:02:16.2]} 25. Bf1 {[%clk
0:01:57.4]} 25... Rcd8 {[%clk 0:02:15.2]} 26. Be2 {[%clk 0:01:57.4]} 26... Nc6
{[%clk 0:01:57.4]} 27. Rxd7 {[%clk 0:01:55.5]} 27... Rxd7 {[%clk 0:01:56.8]} 28.
Rd1 {[%clk 0:01:55.3]} 28... Rxd1 {[%clk 0:01:44]} 29. Bxd1 {[%clk 0:01:54.6]}
29... Qd7 {[%clk 0:01:44.1]} 30. Qd2 {[%clk 0:01:49.2]} 30... Qxd2 {[%clk
0:01:34.4]} 31. Nxd2 {[%clk 0:01:48.1]} 31... g5 {[%clk 0:01:29.5]} 32. Ndf3
{[%clk 0:01:27.9]} 32... gxf4 {[%clk 0:01:27.2]} 33. gxf4 {[%clk 0:01:28.3]}
33... f6 {[%clk 0:01:27.4]} 34. exf6 {[%clk 0:01:24]} 34... Bxf6 {[%clk
0:01:27.5]} 35. Bc2 {[%clk 0:01:22.3]} 35... Bxc2 {[%clk 0:01:25.6]} 36. Nxc2
{[%clk 0:01:21.4]} 36... Na5 {[%clk 0:01:26.3]} 37. f5 {[%clk 0:01:16.4]} 37...
Kf7 {[%clk 0:01:12.3]} 38. fxe6+ {[%clk 0:01:13.4]} 38... Kxe6 {[%clk
0:01:13.2]} 39. Nd2 {[%clk 0:01:11.8]} 39... Bc3 {[%clk 0:01:13.3]} 40. Ne4
{[%clk 0:01:06.4]} 40... Nxb3 {[%clk 0:01:13.5]} 41. Kg2 {[%clk 0:01:06.7]}
41... Ke5 {[%clk 0:01:11]} 42. Kf3 {[%clk 0:00:56.4]} 42... Nd4+ {[%clk
0:00:57]} 43. Nxd4 {[%clk 0:00:56.6]} 43... Kxd4 {[%clk 0:00:57.7]} 44. h4
{[%clk 0:00:52.7]} 44... Kxc4 {[%clk 0:00:56.5]} 45. h5 {[%clk 0:00:52.7]} 45...
b3 {[%clk 0:00:55.8]} 0-1

[Event "Early-Titled-Tuesday-Blitz-February-06-2024"]
[Site "Chess.com"]
[Date "2024.02.06"]
[Round "4"]
[White "abhidabhi"]
[Black "SaqoChess_Twitch"]
[Result "1-0"]
[WhiteElo "2912"]
[BlackElo "2607"]
[TimeControl "180+1"]
[EndTime "8:38:34 PST"]
[Termination "abhidabhi won by resignation"]

1. c4 {[%clk 0:03:00.9]} 1... Nf6 {[%clk 0:02:59.2]} 2. Nc3 {[%clk 0:03:00.3]}
2... e6 {[%clk 0:02:59.4]} 3. e4 {[%clk 0:02:59.9]} 3... c5 {[%clk 0:02:59.6]}
4. e5 {[%clk 0:02:58.6]} 4... Ng8 {[%clk 0:02:59.9]} 5. Nf3 {[%clk 0:02:54.9]}
5... Nc6 {[%clk 0:03:00]} 6. g3 {[%clk 0:02:45.7]} 6... d6 {[%clk 0:02:58.3]} 7.
exd6 {[%clk 0:02:45.4]} 7... Bxd6 {[%clk 0:02:58.4]} 8. d4 {[%clk 0:02:34.2]}
8... cxd4 {[%clk 0:02:54.3]} 9. Nxd4 {[%clk 0:02:33.1]} 9... Nge7 {[%clk
0:02:42.3]} 10. Bg2 {[%clk 0:02:29.3]} 10... O-O {[%clk 0:02:41.8]} 11. Nxc6
{[%clk 0:02:24]} 11... Nxc6 {[%clk 0:02:41.1]} 12. O-O {[%clk 0:02:23.4]} 12...
Be7 {[%clk 0:02:36.9]} 13. Bf4 {[%clk 0:02:21.1]} 13... e5 {[%clk 0:02:32.7]}
14. Be3 {[%clk 0:02:10.2]} 14... Qxd1 {[%clk 0:02:30.4]} 15. Rfxd1 {[%clk
0:02:09.7]} 15... Be6 {[%clk 0:02:31.1]} 16. Nd5 {[%clk 0:02:08.8]} 16... Bd8
{[%clk 0:02:07.1]} 17. Rac1 {[%clk 0:01:45.1]} 17... f6 {[%clk 0:02:04.3]} 18.
b4 {[%clk 0:01:44.6]} 18... a6 {[%clk 0:01:21.7]} 19. a4 {[%clk 0:01:21.6]}
19... Rb8 {[%clk 0:01:16.4]} 20. b5 {[%clk 0:01:20.3]} 20... axb5 {[%clk
0:01:16.6]} 21. axb5 {[%clk 0:01:17.6]} 21... Ne7 {[%clk 0:01:14.3]} 22. Ba7
{[%clk 0:01:06.8]} 22... Ra8 {[%clk 0:01:08.6]} 23. Bc5 {[%clk 0:01:06.9]} 23...
Rf7 {[%clk 0:00:42.9]} 24. Bxe7 {[%clk 0:01:06.3]} 24... Bxe7 {[%clk 0:00:42.6]}
25. Nc7 {[%clk 0:01:04]} 25... Rc8 {[%clk 0:00:19.1]} 26. Nxe6 {[%clk
0:01:03.2]} 26... Bb4 {[%clk 0:00:19.4]} 27. Nd8 {[%clk 0:00:52.5]} 27... Rfc7
{[%clk 0:00:17.1]} 28. Bd5+ {[%clk 0:00:52.3]} 28... Kh8 {[%clk 0:00:16.8]} 29.
Nf7+ {[%clk 0:00:52.1]} 29... Kg8 {[%clk 0:00:16.7]} 30. Nd6+ {[%clk 0:00:50.8]}
30... Kh8 {[%clk 0:00:16.4]} 31. Nxc8 {[%clk 0:00:50.5]} 31... Rxc8 {[%clk
0:00:17.3]} 32. Bxb7 {[%clk 0:00:50.8]} 1-0

[Event "Early-Titled-Tuesday-Blitz-February-06-2024"]
[Site "Chess.com"]
[Date "2024.02.06"]
[Round "4"]
[White "Predo63"]
[Black "Al_Shima"]
[Result "1-0"]
[WhiteElo "2507"]
[BlackElo "2332"]
[TimeControl "180+1"]
[EndTime "8:38:34 PST"]
[Termination "Predo63 won by resignation"]

1. d4 {[%clk 0:03:00.9]} 1... Nf6 {[%clk 0:02:58.7]} 2. Bg5 {[%clk 0:03:00.8]}
2... Ne4 {[%clk 0:02:58.8]} 3. Bf4 {[%clk 0:03:00.3]} 3... d5 {[%clk 0:02:59]}
4. Nd2 {[%clk 0:02:59.8]} 4... Bf5 {[%clk 0:02:57]} 5. e3 {[%clk 0:03:00]} 5...
e6 {[%clk 0:02:54.3]} 6. Ngf3 {[%clk 0:03:00.1]} 6... Bd6 {[%clk 0:02:53.6]} 7.
Bxd6 {[%clk 0:03:00.2]} 7... Qxd6 {[%clk 0:02:54.5]} 8. c3 {[%clk 0:02:59.7]}
8... Nd7 {[%clk 0:02:53.3]} 9. Nxe4 {[%clk 0:02:59.7]} 9... Bxe4 {[%clk
0:02:52.9]} 10. Bd3 {[%clk 0:02:59.9]} 10... Bxd3 {[%clk 0:02:50.9]} 11. Qxd3
{[%clk 0:02:59.6]} 11... O-O {[%clk 0:02:50.5]} 12. O-O {[%clk 0:02:59.6]} 12...
c5 {[%clk 0:02:50.2]} 13. a4 {[%clk 0:02:58.3]} 13... h6 {[%clk 0:02:50]} 14. h3
{[%clk 0:02:56.5]} 14... a6 {[%clk 0:02:48.7]} 15. Rfc1 {[%clk 0:02:54.5]} 15...
Rac8 {[%clk 0:02:46.7]} 16. a5 {[%clk 0:02:52.1]} 16... Rfd8 {[%clk 0:02:44.6]}
17. Rd1 {[%clk 0:02:49.1]} 17... Qe7 {[%clk 0:02:19.9]} 18. Ra4 {[%clk
0:02:47.7]} 18... g6 {[%clk 0:01:46.3]} 19. Ne5 {[%clk 0:02:45]} 19... Nxe5
{[%clk 0:01:44.9]} 20. dxe5 {[%clk 0:02:44.9]} 20... c4 {[%clk 0:01:45.2]} 21.
Qd4 {[%clk 0:02:41.4]} 21... Rc5 {[%clk 0:01:34.2]} 22. Rda1 {[%clk 0:02:40.5]}
22... Rb5 {[%clk 0:01:33.5]} 23. R1a2 {[%clk 0:02:39.1]} 23... Qd7 {[%clk
0:01:29.1]} 24. h4 {[%clk 0:02:35.9]} 24... h5 {[%clk 0:01:28.4]} 25. g3 {[%clk
0:02:35.5]} 25... Rxb2 {[%clk 0:00:53.5]} 26. Rxb2 {[%clk 0:02:32.3]} 26... Qxa4
{[%clk 0:00:52.9]} 27. Rxb7 {[%clk 0:02:32.5]} 27... Qxa5 {[%clk 0:00:53.4]} 28.
Qf4 {[%clk 0:02:30.3]} 28... Rf8 {[%clk 0:00:52.5]} 29. Qd4 {[%clk 0:02:29.7]}
29... Qa1+ {[%clk 0:00:39]} 30. Kg2 {[%clk 0:02:29.5]} 30... a5 {[%clk
0:00:31.3]} 31. Ra7 {[%clk 0:02:29.1]} 31... a4 {[%clk 0:00:29]} 32. Kf3 {[%clk
0:02:00.3]} 32... a3 {[%clk 0:00:23.1]} 33. Kf4 {[%clk 0:01:57.5]} 33... a2
{[%clk 0:00:18.7]} 34. Kg5 {[%clk 0:01:55.5]} 34... Qb1 {[%clk 0:00:14.1]} 35.
Kh6 {[%clk 0:01:52.5]} 35... g5 {[%clk 0:00:05.9]} 36. e4 {[%clk 0:01:40.7]}
36... Qc1 {[%clk 0:00:02.6]} 37. hxg5 {[%clk 0:01:39.8]} 37... a1=Q {[%clk
0:00:02.4]} 38. Rxa1 {[%clk 0:01:34.3]} 38... Qxa1 {[%clk 0:00:03.3]} 39. Qe3
{[%clk 0:01:34.4]} 39... Rb8 {[%clk 0:00:02.2]} 40. Qf4 {[%clk 0:01:33.2]} 40...
Kf8 {[%clk 0:00:01.5]} 41. g6 {[%clk 0:01:33.5]} 41... Qa7 {[%clk 0:00:01.1]}
42. Qf6 {[%clk 0:01:30.1]} 42... Ke8 {[%clk 0:00:01.8]} 43. g7 {[%clk
0:01:29.9]} 43... Kd7 {[%clk 0:00:02.1]} 44. Qxf7+ {[%clk 0:01:30.2]} 44... Kc6
{[%clk 0:00:02.7]} 45. Qxa7 {[%clk 0:01:30.3]} 45... Rg8 {[%clk 0:00:02.7]} 46.
Qa6+ {[%clk 0:01:30.5]} 1-0